bitfinex/quotes_ETHUSD_20250810
["timestamp","ask_amount","ask_price","bid_price","bid_amount"]
[1754853471160,9.00566111,4248.7,4248.6,1e-08]
[1754853471522,9.73167404,4248.7,4248.6,1e-08]
[1754853474940,11.23617404,4248.7,4248.6,1e-08]
[1754853475115,12.65843682,4248.7,4248.6,1e-08]
[1754853475717,2.90382732,4248.4,4248.3,1e-08]
[1754853476033,10.28084025,4248.4,4248.3,1e-08]
[1754853476238,11.22755227,4248.4,4248.3,1e-08]
[1754853476610,2.90393813,4248.2,4248.1,1e-08]
[1754853476808,11.55211351,4248.2,4248.1,1e-08]
[1754853477014,13.0128849,4248.2,4248.1,1e-08]
[1754853478334,13.64573294,4248.2,4248.1,1e-08]
[1754853479343,13.24337698,4248.2,4248.1,1e-08]
[1754853479932,13.36097698,4248.2,4248.1,1e-08]
[1754853480448,14.20981905,4248.2,4248.1,1e-08]
[1754853480630,13.97932697,4248.2,4248.1,1e-08]
[1754853480949,13.1304849,4248.2,4248.1,1e-08]
[1754853485554,13.13064465,4248.2,4248.1,1e-08]
[1754853486462,12.66564465,4248.2,4248.1,1e-08]
[1754853486935,13.13064465,4248.2,4248.1,1e-08]
[1754853487337,12.66564465,4248.2,4248.1,1e-08]
[1754853487638,12.66564465,4248.2,4248.1,0.45330001]
[1754853487639,12.16714465,4248.2,4248.1,0.45330001]
[1754853488345,9.16714465,4248.2,4248.1,0.45330001]
[1754853488548,7.17096927,4248.2,4248.1,0.45330001]
[1754853489159,10.17096927,4248.2,4248.1,0.45330001]
[1754853490564,10.17096927,4248.2,4248.1,1e-08]
[1754853491076,10.39088849,4248.2,4248.1,1e-08]
[1754853493784,10.17096927,4248.2,4248.1,1e-08]
[1754853493973,11.42267013,4248.2,4248.1,1e-08]
[1754853495779,12.13234719,4248.2,4248.1,1e-08]
[1754853496189,12.13434719,4248.2,4248.1,1e-08]
[1754853497173,11.64484719,4248.2,4248.1,1e-08]
[1754853497979,11.64484719,4248.2,4248.1,0.44290001]
[1754853498589,11.64484719,4248.2,4248.1,1e-08]
[1754853498893,12.12894719,4248.2,4248.1,1e-08]
[1754853501871,2.35460312,4247.1,4246.5,0.4612]
[1754853502079,3.632,4247.0,4246.6,0.21885242]
[1754853502394,2.35460312,4247.1,4247.0,0.1176]
[1754853502395,3.631,4247.1,4247.0,0.1176]
[1754853502568,3.631,4247.1,4247.0,0.79765242]
[1754853502763,3.631,4247.1,4247.0,0.79769256]
[1754853503496,5.9855478,4247.1,4247.0,0.33649256]
[1754853504070,5.9855478,4247.1,4247.0,0.21889256]
[1754853505569,6.93715351,4247.1,4247.0,0.21889256]
[1754853506306,6.5872478,4247.1,4247.0,0.21889256]
[1754853507094,7.1372478,4247.1,4247.0,0.21889256]
[1754853507343,7.6050478,4247.1,4247.0,0.21889256]
[1754853507479,7.6050478,4247.1,4245.0,3.0]
[1754853507480,2.35471413,4246.8,4245.2,0.4429]
[1754853507692,2.35544454,4245.5,4245.2,0.4429]
[1754853508022,2.35520435,4246.0,4245.3,0.4612]
[1754853508168,2.35462114,4247.0,4245.4,4.44306749]
[1754853508369,5.98658141,4247.1,4246.0,2.35514992]
[1754853508614,2.35472733,4246.8,4246.1,0.9041]
[1754853508772,2.35472733,4246.8,4246.5,0.1176]
[1754853508773,2.35476958,4246.7,4246.5,0.1176]
[1754853508972,5.98882503,4246.6,4246.5,0.1176]
[1754853509800,2.35482503,4246.6,4246.5,1.0217]
[1754853510319,5.98877135,4246.7,4246.5,1.0217]
[1754853510478,2.35477135,4246.7,4246.5,1.0217]
[1754853510782,2.35472436,4246.8,4246.6,0.9041]
[1754853510974,3.633,4246.9,4246.7,0.9041]
[1754853511173,2.35479679,4246.7,4246.5,0.1176]
[1754853511373,2.35479679,4246.7,4245.7,2.35531251]
[1754853511574,2.35479679,4246.7,4246.6,0.1176]
[1754853511904,2.35479679,4246.7,4246.6,1.0217]
[1754853512502,5.98879679,4246.7,4246.6,1.0217]
[1754853513009,5.98879679,4246.7,4246.6,0.1176]
[1754853514297,2.35482503,4246.6,4246.2,0.1176]
[1754853514477,2.35482503,4246.6,4246.3,0.4429]
[1754853514478,2.35498134,4246.4,4246.3,0.4429]
[1754853514677,2.3549914,4246.3,4246.2,0.5788]
[1754853514888,2.3549914,4246.3,4246.2,0.1176]
[1754853515609,5.9869914,4246.3,4246.2,0.1176]
[1754853516016,5.9869914,4246.3,4244.6,0.04]
[1754853516017,2.35515991,4246.0,4245.3,0.4429]
[1754853516183,2.35526873,4245.8,4245.3,0.4429]
[1754853516504,2.35533762,4245.7,4245.3,0.9041]
[1754853516807,2.35533762,4245.7,4245.4,0.4429]
[1754853517103,3.631,4245.9,4245.0,0.4612]
[1754853517104,3.631,4245.9,4245.6,0.1176]
[1754853517410,2.35532421,4245.7,4245.6,0.1176]
[1754853518282,5.98732421,4245.7,4245.6,0.1176]
[1754853520191,2.35563885,4245.2,4244.8,0.001]
[1754853520409,3.631,4245.1,4245.0,0.1176]
[1754853520723,5.98665711,4245.1,4245.0,0.1176]
[1754853521682,2.35576809,4244.9,4244.8,0.001]
[1754853521887,5.99076809,4244.9,4244.8,0.001]
[1754853522112,2.35576809,4244.9,4244.8,0.001]
[1754853523490,3.19041141,4244.9,4244.8,0.001]
[1754853523817,2.35576809,4244.9,4244.8,0.001]
[1754853524615,3.30766809,4244.9,4244.8,0.001]
[1754853525517,2.35576809,4244.9,4244.8,0.001]
[1754853525723,5.98976809,4244.9,4244.8,0.001]
[1754853526021,3.634,4244.9,4244.8,0.4439]
[1754853526222,5.98976809,4244.9,4244.8,0.4439]
[1754853527724,5.98976809,4244.9,4244.8,0.001]
[1754853528023,2.35576809,4244.9,4244.8,0.001]
[1754853528205,5.98876809,4244.9,4244.8,0.4432]
[1754853528403,5.98876809,4244.9,4244.8,0.001]
[1754853528621,6.82321126,4244.9,4244.8,0.001]
[1754853530025,10.73921126,4244.9,4244.8,0.001]
[1754853531595,7.10621126,4244.9,4244.8,0.001]
[1754853531819,9.82121126,4244.9,4244.8,0.001]
[1754853532018,8.98676809,4244.9,4244.8,0.001]
[1754853535318,9.90276809,4244.9,4244.8,0.001]
[1754853536834,8.98676809,4244.9,4244.8,0.001]
[1754853539241,8.98276809,4244.9,4244.8,0.001]
[1754853543432,9.46216809,4244.9,4244.8,0.001]
[1754853543629,10.66672595,4244.9,4244.8,0.001]
[1754853543829,2.35582359,4244.8,4244.6,0.04]
[1754853544028,8.97987909,4244.7,4244.6,0.04]
[1754853544243,9.89587909,4244.7,4244.6,0.04]
[1754853544825,10.01347909,4244.7,4244.6,0.04]
[1754853545027,6.83086514,4244.7,4244.6,0.04]
[1754853545230,8.97887909,4244.7,4244.6,0.04]
[1754853545426,8.97887909,4244.7,4244.6,0.4822]
[1754853545625,8.97887909,4244.7,4244.6,0.04]
[1754853546760,8.97887909,4244.7,4244.6,0.4822]
[1754853546943,8.97887909,4244.7,4244.6,0.04]
[1754853553148,10.59174936,4244.7,4244.6,0.04]
[1754853553350,11.02834936,4244.7,4244.6,0.04]
[1754853554063,11.5370339,4244.7,4244.6,0.04]
[1754853554449,11.5370339,4244.7,4244.6,1e-08]
[1754853554640,11.75783308,4244.7,4244.6,1e-08]
[1754853554993,16.16684567,4244.7,4244.6,1e-08]
[1754853555277,16.79992991,4244.7,4244.6,1e-08]
[1754853555833,2.90637871,4243.8,4243.6,0.04]
[1754853556032,5.90648977,4243.6,4243.5,1e-08]
[1754853556252,10.03517431,4243.6,4243.5,1e-08]
[1754853556573,11.17177337,4243.6,4243.5,1e-08]
[1754853557249,10.95117431,4243.6,4243.5,1e-08]
[1754853557464,5.35648977,4243.6,4243.5,1e-08]
[1754853557654,8.97548977,4243.6,4243.5,1e-08]
[1754853557844,8.97548977,4243.6,4243.5,0.44230001]
[1754853558041,8.97548977,4243.6,4243.5,1e-08]
[1754853558272,10.60354217,4243.6,4243.5,1e-08]
[1754853558444,11.07564217,4243.6,4243.5,1e-08]
[1754853558843,8.97548977,4243.6,4243.5,1e-08]
[1754853560097,9.93068977,4243.6,4243.5,1e-08]
[1754853560553,10.04828977,4243.6,4243.5,1e-08]
[1754853561468,10.59828977,4243.6,4243.5,1e-08]
[1754853562748,11.10558313,4243.6,4243.5,1e-08]
[1754853562947,12.45178487,4243.6,4243.5,1e-08]
[1754853564077,12.44477179,4243.6,4243.0,1e-08]
[1754853564280,6.02436745,4243.1,4243.0,1e-08]
[1754853564446,9.64436745,4243.1,4243.0,1e-08]
[1754853564650,10.59956745,4243.1,4243.0,1e-08]
[1754853564846,11.89519335,4243.1,4243.0,1e-08]
[1754853565472,2.35721188,4242.3,4242.2,0.001]
[1754853565671,9.09381188,4242.3,4242.2,0.001]
[1754853566077,10.04901188,4242.3,4242.2,0.001]
[1754853566475,2.35754532,4241.7,4241.6,0.04]
[1754853568880,2.35754532,4241.7,4241.6,0.4823]
[1754853569471,2.35754532,4241.7,4241.6,1.0611]
[1754853570616,3.62,4241.9,4241.6,1.0611]
[1754853570978,2.35754149,4241.8,4241.7,0.9035]
[1754853571227,3.62,4241.9,4241.6,0.1576]
[1754853571500,5.97743416,4241.9,4241.8,0.4423]
[1754853572679,2.35754532,4241.7,4241.6,0.1576]
[1754853572997,5.97854532,4241.7,4241.6,0.1576]
[1754853575411,5.97854532,4241.7,4241.6,0.5999]
[1754853576404,0.17453672,4242.5,4241.6,0.4823]
[1754853576583,2.35732302,4242.1,4241.6,1.0611]
[1754853576914,5.97732302,4242.1,4242.0,0.1176]
[1754853581082,0.63236259,4243.6,4242.0,1.44]
[1754853581284,0.63436259,4244.5,4243.5,3.0]
[1754853581489,0.002,4244.5,4244.4,0.1176]
[1754853581713,2.3579901,4244.5,4244.4,0.1176]
[1754853582019,2.3579901,4244.5,4244.4,0.825123]
[1754853582349,2.3579901,4244.5,4244.4,0.1176]
[1754853582578,2.3579901,4244.5,4244.4,0.33579403]
[1754853582739,0.002,4244.5,4244.4,0.33579403]
[1754853582944,2.3579901,4244.5,4244.4,0.33579403]
[1754853583360,0.002,4244.5,4244.4,0.33579403]
[1754853583529,2.3579901,4244.5,4244.4,0.33579403]
[1754853589975,2.8238901,4244.5,4244.4,0.33579403]
[1754853590178,3.3050901,4244.5,4244.4,0.33579403]
[1754853592989,3.87118765,4244.5,4244.4,0.33579403]
[1754853593362,3.87118765,4244.5,4244.4,0.21819403]
[1754853596257,2.35615663,4244.2,4244.1,0.1176]
[1754853596455,2.35615663,4244.2,4244.1,0.33532858]
[1754853597787,2.34984763,4244.2,4244.1,0.33532858]
[1754853599061,2.34984763,4244.2,4244.1,0.1176]
[1754853599261,2.34984763,4244.2,4244.1,0.33538348]
[1754853599462,2.81574763,4244.2,4244.1,0.33538348]
[1754853600584,3.29694763,4244.2,4244.1,0.33538348]
[1754853600761,3.91906025,4244.2,4244.1,0.21778348]
[1754853600965,7.57006025,4244.2,4244.1,0.21778348]
[1754853601184,2.35643424,4243.7,4243.6,0.1176]
[1754853601365,2.35643424,4243.7,4243.6,0.3354956]
[1754853601575,2.82233424,4243.7,4243.6,0.3354956]
[1754853603288,3.30353424,4243.7,4243.6,0.3354956]
[1754853604564,0.002,4244.5,4243.6,3.8658956]
[1754853604772,0.002,4244.5,4244.4,0.1176]
[1754853604964,0.002,4244.5,4244.4,0.3354956]
[1754853605473,0.002,4244.5,4244.4,6.34254121]
[1754853608094,0.042,4244.9,4244.6,2.35591994]
[1754853608311,0.042,4244.9,4244.8,0.1176]
[1754853608597,0.042,4244.9,4244.8,0.3354956]
[1754853610917,0.042,4244.9,4244.8,2.69131919]
[1754853611280,0.042,4244.9,4244.8,3.9814956]
[1754853611476,0.042,4244.9,4244.8,3.9824956]
[1754853613711,0.042,4244.9,4244.8,3.9814956]
[1754853614092,0.042,4244.9,4244.8,0.3354956]
[1754853614281,0.042,4244.9,4244.8,3.9804956]
[1754853614688,0.042,4244.9,4244.8,0.3354956]
[1754853614904,0.042,4244.9,4244.8,3.9794956]
[1754853615582,0.042,4244.9,4244.8,4.61303831]
[1754853616201,0.03632796,4244.9,4244.8,0.96903831]
[1754853616408,0.03632796,4244.9,4244.8,3.9774956]
[1754853618623,0.03632796,4244.9,4244.8,3.97809147]
[1754853619305,0.03632796,4244.9,4244.8,0.33609147]
[1754853619706,0.03632796,4244.9,4244.8,3.97609147]
[1754853619899,0.03632796,4244.9,4244.8,4.60929809]
[1754853620705,0.03632796,4244.9,4244.8,4.63285632]
[1754853621019,0.03632796,4244.9,4244.8,6.96512168]
[1754853621224,0.03632796,4244.9,4244.8,4.60929809]
[1754853621919,0.03632796,4244.9,4244.8,6.96512168]
[1754853622688,0.03632796,4244.9,4244.8,4.60929809]
[1754853624010,0.03632796,4244.9,4244.8,6.96512168]
[1754853625126,0.03632796,4244.9,4244.8,4.60929809]
[1754853625340,0.03632796,4244.9,4244.8,4.61029809]
[1754853625901,0.97532796,4244.9,4244.8,0.33709147]
[1754853626097,0.97532796,4244.9,4244.8,3.97209147]
[1754853626998,3.33109605,4244.9,4244.8,0.33709147]
[1754853627392,3.33109605,4244.9,4244.8,0.33723914]
[1754853627734,3.89997286,4244.9,4244.8,0.33723914]
[1754853630127,3.89997286,4244.9,4244.8,0.1186]
[1754853630304,3.89997286,4244.9,4244.8,0.33724703]
[1754853634347,3.89487235,4244.9,4244.8,0.33724703]
[1754853638143,3.89487235,4244.9,4244.8,0.21964703]
[1754853638947,7.52087235,4244.9,4244.8,0.21964703]
[1754853652346,7.51628488,4244.9,4244.8,0.21964703]
[1754853655065,7.63388488,4244.9,4244.8,0.21964703]
[1754853655857,2.90582359,4244.8,4244.3,0.001]
[1754853656045,2.35604561,4244.4,4244.3,0.001]
[1754853656370,5.97704561,4244.4,4244.3,0.001]
[1754853656671,6.91144561,4244.4,4244.3,0.001]
[1754853667962,6.91144561,4244.4,4244.3,0.220354]
[1754853670494,6.90731944,4244.4,4244.3,0.220354]
[1754853670672,7.95726425,4244.4,4244.3,0.220354]
[1754853674903,11.50726425,4244.4,4244.3,0.220354]
[1754853675191,12.01571009,4244.4,4244.3,0.220354]
[1754853675594,12.01571009,4244.4,4244.3,1e-08]
[1754853675806,12.23637063,4244.4,4244.3,1e-08]
[1754853679801,2.90632319,4243.9,4243.8,1e-08]
[1754853680000,10.15621605,4243.9,4243.8,1e-08]
[1754853680169,11.57836189,4243.9,4243.8,1e-08]
[1754853680871,5.9065453,4243.5,4243.4,1e-08]
[1754853681071,9.6451453,4243.5,4243.4,1e-08]
[1754853681282,11.85037881,4243.5,4243.4,1e-08]
[1754853682085,12.07087193,4243.5,4243.4,1e-08]
[1754853682406,12.07079087,4243.5,4243.4,1e-08]
[1754853683307,12.57885375,4243.5,4243.4,1e-08]
[1754853683504,12.57885375,4243.5,4242.2,0.1176]
[1754853683505,2.3569341,4242.8,4242.2,0.1176]
[1754853683706,8.9779341,4242.8,4242.2,0.1176]
[1754853683906,9.8916341,4242.8,4242.2,0.1176]
[1754853685816,10.01073417,4242.8,4242.2,0.1176]
[1754853688320,10.56073417,4242.8,4242.2,0.1176]
[1754853688519,5.90698965,4242.7,4242.0,0.1176]
[1754853688687,6.39018965,4242.7,4241.6,0.04]
[1754853688888,6.82068965,4242.7,4241.8,0.1176]
[1754853689088,6.81697802,4242.7,4242.6,1e-08]
[1754853689388,8.4861771,4242.7,4242.6,1e-08]
[1754853693203,8.4861771,4242.7,4242.6,0.21880532]
[1754853696229,3.55,4242.5,4242.2,0.001]
[1754853696391,9.52815632,4242.4,4242.3,1e-08]
[1754853696724,2.90721188,4242.3,4242.2,1e-08]
[1754853696930,2.90721188,4242.3,4241.6,0.04]
[1754853696931,2.90754532,4241.7,4241.6,0.04]
[1754853697219,9.52854532,4241.7,4241.6,1e-08]
[1754853697411,11.63084698,4241.7,4241.6,1e-08]
[1754853698617,11.80497445,4241.7,4241.6,1e-08]
[1754853700527,6.72027445,4241.7,4241.6,1e-08]
[1754853700741,8.97854532,4241.7,4241.6,1e-08]
[1754853702221,5.97854532,4241.7,4241.6,1e-08]
[1754853702525,3.0,4242.2,4241.6,1e-08]
[1754853702724,2.35740349,4242.0,4241.6,1e-08]
[1754853702925,5.97833156,4242.1,4241.6,1e-08]
[1754853703093,2.35738569,4242.0,4241.6,1e-08]
[1754853703294,2.35754532,4241.7,4241.6,1e-08]
[1754853703924,2.35750499,4241.8,4241.6,1e-08]
[1754853705322,2.35745091,4241.9,4241.6,1e-08]
[1754853705692,3.621,4242.0,4241.6,1e-08]
[1754853705693,5.97839049,4242.0,4241.6,1e-08]
[1754853706092,5.97839049,4242.0,4241.9,0.1176]
[1754853706321,2.35739049,4242.0,4241.9,0.1176]
[1754853708028,2.35739049,4242.0,4241.9,0.33654488]
[1754853708233,0.1176,4242.6,4241.9,0.33654488]
[1754853708435,2.35697845,4242.8,4242.0,0.21894488]
[1754853708739,2.35697845,4242.8,4242.7,0.1176]
[1754853708740,2.35698034,4242.8,4242.7,0.1176]
[1754853709035,2.35698034,4242.8,4242.7,0.33654488]
[1754853713419,2.35685962,4243.0,4242.7,0.33654488]
[1754853713622,0.1176,4243.3,4242.7,0.33654488]
[1754853713623,2.35676745,4243.1,4242.8,0.21894488]
[1754853713801,2.35676745,4243.1,4242.9,0.21894488]
[1754853714128,2.35676745,4243.1,4243.0,0.33654488]
[1754853716042,0.002,4243.3,4243.0,0.33654488]
[1754853716245,0.002,4243.3,4243.1,0.21894488]
[1754853716538,0.002,4243.3,4243.2,0.21878729]
[1754853717207,0.002,4243.3,4243.2,0.33638729]
[1754853718805,2.79705637,4243.3,4243.2,0.33638729]
[1754853719039,3.24835637,4243.3,4243.2,0.33638729]
[1754853719239,2.80995637,4243.3,4243.2,0.33638729]
[1754853719537,6.86735637,4243.3,4243.2,0.33638729]
[1754853721655,3.621,4243.3,4243.2,0.33638729]
[1754853722028,5.97765637,4243.3,4243.2,0.33638729]
[1754853722225,5.97765637,4243.3,4243.2,0.21878729]
[1754853722425,5.97765637,4243.3,4243.2,0.33638729]
[1754853723552,6.86735637,4243.3,4243.2,0.33638729]
[1754853732362,6.86735637,4243.3,4243.2,0.33638729]
[1754853733865,7.66024611,4243.3,4243.2,0.33638729]
[1754853736431,7.66024611,4243.3,4243.2,0.21878729]
[1754853739146,6.77054611,4243.3,4243.2,0.21878729]
[1754853739340,6.45055637,4243.3,4243.2,0.21878729]
[1754853739672,6.91815637,4243.3,4243.2,0.21878729]
[1754853742741,0.002,4243.3,4243.2,0.21878729]
[1754853748985,0.4749,4243.3,4243.2,0.21878729]
[1754853749186,0.002,4243.3,4243.2,0.21878729]
[1754853750584,0.4749,4243.3,4243.2,0.21878729]
[1754853750785,3.29915637,4243.3,4243.2,0.21878729]
[1754853750983,3.86492659,4243.3,4243.2,0.21878729]
[1754853751686,7.47992659,4243.3,4243.2,0.21878729]
[1754853751886,10.47992659,4243.3,4243.2,0.21878729]
[1754853752195,11.02992659,4243.3,4243.2,0.21878729]
[1754853752405,11.53821953,4243.3,4243.2,0.21878729]
[1754853753148,11.65581953,4243.3,4242.3,0.1176]
[1754853753349,2.35694003,4242.8,4242.1,0.001]
[1754853753513,2.35726745,4242.2,4242.1,0.1186]
[1754853754213,3.29776745,4242.2,4242.1,0.1186]
[1754853764838,6.91276745,4242.2,4242.1,0.1186]
[1754853765037,6.91276745,4242.2,4242.1,0.33748266]
[1754853770989,3.29776745,4242.2,4242.1,0.33748266]
[1754853778527,3.29776745,4242.2,4242.1,0.21988266]
[1754853779908,3.29776745,4242.2,4242.1,0.22052797]
[1754853780609,4.22476327,4242.2,4242.1,0.22052797]
[1754853781235,1.86749582,4242.2,4242.1,0.22052797]
[1754853781829,1.86749582,4242.2,4242.1,0.2209546]
[1754853784138,1.86749582,4242.2,4242.1,0.2210497]
[1754853784338,0.9405,4242.2,4242.1,0.2210497]
[1754853791327,0.9405,4242.2,4242.1,0.22110874]
[1754853793464,0.9405,4242.2,4242.1,0.22111025]
[1754853795284,0.9405,4242.2,4242.1,0.22112834]
[1754853796893,0.9219,4243.2,4242.1,0.22112834]
[1754853797041,3.613,4243.2,4242.8,2.3569232]
[1754853797245,3.613,4243.2,4242.9,0.22012834]
[1754853797601,3.613,4243.2,4243.1,2.47436745]
[1754853797799,3.613,4243.2,4243.1,2.69449579]
[1754853801752,0.002,4243.3,4243.2,2.35671191]
[1754853802080,0.002,4243.3,4243.2,2.57606739]
[1754853802378,0.002,4243.3,4243.2,2.69366739]
[1754853802738,0.002,4243.6,4243.5,2.3565453]
[1754853802941,0.002,4243.6,4243.5,2.71706623]
[1754853803177,0.002,4243.6,4243.5,3.46010639]
[1754853803871,0.002,4243.6,4243.5,3.43654094]
[1754853805370,0.002,4243.6,4243.5,3.46010639]
[1754853805773,1e-08,4243.6,4243.5,6.43654094]
[1754853807181,1e-08,4243.6,4243.5,10.04754094]
[1754853807368,1e-08,4243.6,4243.5,10.14188394]
[1754853807756,1e-08,4244.0,4243.9,2.35632319]
[1754853808078,1e-08,4244.0,4243.9,9.95795109]
[1754853808456,1e-08,4244.0,4243.9,10.07555109]
[1754853809048,1e-08,4244.4,4244.3,2.35610112]
[1754853809248,1e-08,4244.4,4244.3,9.1854566]
[1754853809457,1e-08,4244.4,4244.3,9.3030566]
[1754853809660,1e-08,4244.4,4244.3,10.46898347]
[1754853817216,1e-08,4244.4,4244.3,10.46689919]
[1754853818012,1e-08,4244.4,4244.3,10.46489919]
[1754853819405,1e-08,4244.4,4244.3,10.24762799]
[1754853819716,1e-08,4244.4,4244.3,10.46497554]
[1754853820616,1e-08,4244.4,4244.3,3.85697554]
[1754853820797,0.89670001,4244.4,4244.3,6.29904867]
[1754853825521,0.89670001,4244.4,4244.3,6.29980429]
[1754853825721,0.89670001,4244.4,4244.3,2.69180429]
[1754853825901,0.89670001,4244.4,4244.3,6.29880429]
[1754853826503,0.89670001,4244.4,4244.3,2.69180429]
[1754853826736,0.89670001,4244.4,4244.3,6.29880429]
[1754853827021,1e-08,4244.4,4244.3,6.29880429]
[1754853827220,1e-08,4244.4,4244.3,3.55730593]
[1754853827425,0.89670001,4244.4,4244.3,3.55730593]
[1754853827603,0.89670001,4244.4,4244.3,7.16430593]
[1754853828126,0.89670001,4244.4,4244.3,6.29880429]
[1754853831553,1e-08,4244.4,4244.3,6.29880429]
[1754853831733,0.02663998,4244.9,4244.3,6.29880429]
[1754853831734,0.002,4245.0,4244.9,2.35576809]
[1754853832041,1e-08,4245.0,4244.9,9.29847126]
[1754853836854,1e-08,4245.0,4244.9,9.2992691]
[1754853837144,1e-08,4245.0,4244.9,10.85135225]
[1754853842247,1e-08,4245.5,4245.4,2.35549064]
[1754853842433,0.462,4246.2,4245.7,2.35531208]
[1754853842629,0.002,4246.2,4246.1,2.35510232]
[1754853842859,0.002,4246.2,4246.1,6.29660333]
[1754853843364,0.462,4246.2,4246.1,6.29660333]
[1754853844763,0.9158,4246.2,4246.1,6.29660333]
[1754853850475,0.9158,4246.2,4246.1,6.76940053]
[1754853851978,0.9158,4246.2,4246.1,0.33600446]
[1754853852175,0.9158,4246.2,4246.1,2.69110678]
[1754853852776,0.9158,4246.2,4246.1,0.33600446]
[1754853853190,0.9158,4246.2,4246.1,2.69110678]
[1754853854881,0.9158,4246.2,4246.1,6.29510678]
[1754853855978,0.9158,4246.2,4246.1,0.33600446]
[1754853856283,0.9158,4246.2,4246.1,0.21840446]
[1754853857403,0.9158,4246.2,4246.1,2.57350678]
[1754853857609,0.002,4246.2,4246.1,2.57350678]
[1754853857811,0.002,4246.2,4246.1,3.55603872]
[1754853859079,0.002,4246.2,4246.1,3.55646285]
[1754853860719,0.002,4246.6,4246.5,2.35488048]
[1754853860932,0.002,4246.6,4246.5,6.29430907]
[1754853861105,1e-08,4246.6,4246.5,6.29430907]
[1754853861288,1e-08,4246.6,4246.5,7.6131356]
[1754853862722,1e-08,4246.6,4246.5,7.1592356]
[1754853863727,1e-08,4246.9,4246.5,10.1592356]
[1754853864025,0.002,4247.4,4246.9,2.35465869]
[1754853864221,0.002,4247.4,4247.3,2.35443693]
[1754853864441,0.002,4247.4,4247.3,7.14594685]
[1754853864930,0.04,4248.9,4247.3,1.07190992]
[1754853864931,0.4736,4248.5,4247.3,1.07190992]
[1754853865226,0.948,4248.1,4248.0,2.35404896]
[1754853865424,0.948,4248.1,4248.0,6.17487755]
[1754853867243,0.4736,4248.1,4248.0,6.17487755]
[1754853868035,0.4736,4248.1,4248.0,6.174259]
[1754853868231,0.002,4248.7,4248.1,2.35399355]
[1754853868415,0.4736,4248.6,4248.1,3.18962949]
[1754853869134,0.4736,4248.4,4248.1,3.18962949]
[1754853869532,0.4756,4248.2,4248.1,3.18962949]
[1754853870846,0.95,4248.2,4248.1,3.18962949]
[1754853871350,0.95,4248.2,4248.1,3.81921004]
[1754853872442,0.95,4248.2,4248.1,6.17320359]
[1754853872838,0.95,4248.2,4248.1,3.81921004]
[1754853873332,0.95,4248.2,4248.1,0.21821004]
[1754853873537,0.95,4248.2,4248.1,3.81921004]
[1754853874355,0.95,4248.2,4248.1,0.21821004]
[1754853874552,1.28038418,4248.2,4248.1,0.21821004]
[1754853875868,3.63432231,4248.2,4248.1,0.21821004]
[1754853876080,3.30393813,4248.2,4248.1,0.21821004]
[1754853880349,0.95,4248.2,4248.1,0.21821004]
[1754853881260,3.30393813,4248.2,4248.1,0.21821004]
[1754853881466,0.95,4248.2,4248.1,0.21821004]
[1754853881669,1.82753004,4248.2,4248.1,0.21821004]
[1754853883392,0.002,4248.2,4248.1,2.57220359]
[1754853883585,0.002,4248.2,4248.1,2.68980359]
[1754853885894,0.002,4248.2,4248.1,3.14370359]
[1754853887881,0.002,4248.2,4248.1,2.68980359]
[1754853894587,0.002,4248.2,4248.1,2.69021771]
[1754853894910,0.002,4248.2,4248.1,3.5999197]
[1754853896590,0.002,4248.2,4248.1,7.1989197]
[1754853900434,0.002,4248.2,4248.1,7.19896657]
[1754853905333,0.002,4248.2,4248.1,3.59996657]
[1754853905529,0.4585,4248.2,4248.1,6.28926458]
[1754853905730,0.9555,4248.2,4248.1,6.28926458]
[1754853906437,0.4585,4248.2,4248.1,6.28926458]
[1754853910232,0.9555,4248.2,4248.1,6.28926458]
[1754853910533,0.4585,4248.2,4248.1,6.28926458]
[1754853916245,0.002,4248.2,4248.1,7.15360125]
[1754853916458,0.002,4248.2,4248.1,7.60630125]
[1754853919651,0.002,4248.2,4248.1,7.15360125]
[1754853925600,0.002,4248.2,4248.1,7.60750125]
[1754853926102,0.002,4248.2,4248.1,7.15360125]
[1754853928643,0.002,4248.2,4248.1,7.15402567]
[1754853929127,0.4482,4248.2,4248.1,7.15402567]
[1754853929830,0.4482,4248.2,4248.1,7.15202567]
[1754853930338,0.9001,4248.2,4248.1,2.690689]
[1754853930537,0.9001,4248.2,4248.1,6.287689]
[1754853932150,0.9001,4248.2,4248.1,2.69070081]
[1754853932345,0.9001,4248.2,4248.1,6.28770081]
[1754853932546,0.9001,4248.2,4248.1,2.69070081]
[1754853933141,0.9001,4248.2,4248.1,6.28770081]
[1754853934458,0.9001,4248.2,4248.1,2.69070081]
[1754853934662,0.9001,4248.2,4248.1,6.28770081]
[1754853936447,0.9001,4248.2,4248.1,2.69070081]
[1754853937155,0.9001,4248.2,4248.1,6.28770081]
[1754853938149,0.9001,4248.2,4248.1,2.69070081]
[1754853938350,0.9001,4248.2,4248.1,6.28770081]
[1754853939652,0.9001,4248.2,4248.1,2.69070081]
[1754853939947,0.9001,4248.2,4248.1,6.28770081]
[1754853940147,0.9001,4248.2,4248.1,2.69070081]
[1754853940351,0.9001,4248.2,4248.1,6.28670081]
[1754853941131,0.002,4248.2,4248.1,6.28670081]
[1754853941334,0.002,4248.2,4248.1,7.15087942]
[1754853943627,0.002,4248.2,4248.1,7.60477942]
[1754853943827,0.002,4248.2,4248.1,7.15087942]
[1754853955299,0.4767,4248.2,4248.1,7.15087942]
[1754853956198,0.002,4248.2,4248.1,3.55487942]
[1754853956582,0.4767,4248.2,4248.1,7.14987942]
[1754853959202,0.9328,4248.2,4248.1,2.69070081]
[1754853959377,0.9328,4248.2,4248.1,2.57310081]
[1754853959578,0.9328,4248.2,4248.1,6.16810081]
[1754853962783,0.9328,4248.2,4248.1,2.57310081]
[1754853963315,0.9328,4248.2,4248.1,6.16710081]
[1754853964975,0.9328,4248.2,4248.1,2.57310081]
[1754853965175,0.9328,4248.2,4248.1,6.16710081]
[1754853965610,0.9328,4248.2,4248.1,2.57310081]
[1754853965844,0.9328,4248.2,4248.1,6.16710081]
[1754853966830,0.9328,4248.2,4248.1,2.57310081]
[1754853966989,0.9328,4248.2,4248.1,6.16710081]
[1754853969491,0.9328,4248.2,4248.1,6.28470081]
[1754853970490,0.9328,4248.2,4248.1,3.93070726]